[Event "44th Chess Olympiad Open 2022"]
[Site "Chennai"]
[Date "2022.08.01"]
[Round "4.13"]
[White "Carlsen, Magnus"]
[Black "Batsuren, Dambasuren"]
[Result "1-0"]
[WhiteElo "2864"]
[BlackElo "2518"]
[Annotator "TA"]
[PlyCount "59"]
[EventDate "2022.??.??"]
[TimeControl "60"]

{[%evp 22,59,33,39,42,45,60,56,76,64,108,104,144,116,177,181,138,164,164,135,
184,164,165,153,345,356,347,335,523,544,565,415,425,415,5489,5265,2665,2076,
29989,1593]} 1. Nf3 {[%emt 0:00:05]} Nf6 {[%emt 0:00:14]} 2. c4 {[%emt 0:00:09]
} e6 {[%emt 0:00:27]} 3. d4 {[%emt 0:00:35]} d5 {[%emt 0:00:20]} 4. Nc3 {
[%emt 0:01:08]} Bb4 {[%emt 0:00:32]} 5. Bg5 {[%emt 0:00:50]} h6 {[%emt 0:02:08]
} 6. Bh4 {[%emt 0:00:11]} O-O {[%emt 0:11:04]} 7. e3 {[%emt 0:00:54]} Nbd7 {
[%emt 0:08:17]} 8. cxd5 {[%emt 0:13:36]} exd5 {[%emt 0:00:18]} 9. Bd3 {[%emt 0:
00:00]} c6 {[%emt 0:06:26]} 10. O-O {[%emt 0:07:22]} Bd6 {[%emt 0:03:24]} 11.
Qc2 {[%emt 0:01:51]} Re8 {[%emt 0:04:39]} 12. Rfe1 {[%emt 0:02:31]} Be7 {
[%emt 0:15:06] D36: Queen's Gambit Declined: Exchange Variation: Main line (5
Bg5 c6 6 Qc2).} 13. Bg3 {[%emt 0:01:09][%cal Yc3b5]} Nf8 {[%emt 0:03:03]} 14.
h3 {[%emt 0:02:04]} b6 {[%emt 0:07:09] White is slightly better.} 15. e4 {
[%emt 0:16:28]} dxe4 {[%emt 0:02:53]} 16. Nxe4 {[%emt 0:00:04]} Bb7 {[%emt 0:
00:00]} 17. Ne5 $1 {[%emt 0:01:33] [#] 0x0.0013ba1469addp-1022s more active
pieces.} Ne6 $146 {[%emt 0:01:42]} ({Predecessor:} 17... Rc8 18. Nxf6+ Bxf6 19.
Nxf7 Kxf7 20. Bc4+ Ne6 21. Rxe6 Rxe6 22. Re1 Qd5 23. Rxe6 Qxe6 24. Bxe6+ Kxe6 {
1-0 (31) Thorsteins,K (2493)-Kristjansson,O (2245) Reykjavik 1999}) 18. Nxf6+ {
[%emt 0:05:58]} (18. Nxc6 Bxc6 19. Qxc6 Qxd4 $11) 18... Bxf6 {[%emt 0:00:15]}
19. Bh7+ {[%emt 0:00:14]} ({Weaker is} 19. Nxc6 Qd5 20. Bh7+ Kh8 $15) 19... Kf8
{[%emt 0:00:09]} 20. Rad1 {[%emt 0:03:00]} ({Not} 20. Nxc6 Qd5 21. Be4 Nxd4 22.
Bxd5 Nxc2 23. Rxe8+ Rxe8 $11) 20... Bxe5 {[%emt 0:06:53]} (20... Re7 $16) 21.
dxe5 {[%emt 0:04:56][%cal Yd4e5,Ye5e6]} Qe7 {[%emt 0:02:41] [#]} 22. f4 $1 {
[%emt 0:00:20][%cal Yf2f4,Yf4f5] And now Rd6 would win.} c5 $2 {[%emt 0:02:58]
[#] Black cannot hold the game after this.} (22... Rad8 $16 {was worth a try.})
23. f5 $1 $18 {[%emt 0:00:17]} Nd4 {[%emt 0:09:56]} 24. Qf2 {[%emt 0:03:56]}
Qd7 {[%emt 0:06:11]} (24... f6 $142 25. Bg6 Qd7 26. Bxe8 Rxe8) 25. e6 {[%emt 0:
02:41]} Qc6 {[%emt 0:00:15]} 26. Be5 {[%emt 0:01:14] Threatens to win with Qg3.
} Rad8 {[%emt 0:02:38]} 27. Qg3 {[%emt 0:01:34]} Ne2+ {[%emt 0:00:00]} (27...
Qxg2+ $142 28. Qxg2 Bxg2) 28. Rxe2 {[%emt 0:00:14]} Rxd1+ {[%emt 0:00:05]} 29.
Kh2 {[%emt 0:00:06]} Ke7 {[%emt 0:01:04]} 30. Bf6+ {[%emt 0:01:24] Weighted
Error Value: White=0.09 (flawless) /Black=0.75} 1-0

[Event "44th Chess Olympiad Open 2022"]
[Site "Chennai"]
[Date "2022.08.01"]
[Round "4.13"]
[White "Hammer, Jon Ludvig"]
[Black "Bilguun, Sumiya"]
[Result "1/2-1/2"]
[WhiteElo "2638"]
[BlackElo "2463"]
[Annotator "TA"]
[PlyCount "76"]
[EventDate "2022.??.??"]
[TimeControl "60"]

{[%evp 16,76,14,16,14,14,8,2,6,4,6,0,0,0,0,0,0,0,0,0,-7,0,-7,-16,-11,-10,0,-18,
0,0,0,0,0,0,25,15,75,90,81,16,19,23,38,0,0,0,0,0,68,0,0,0,0,0,0,0,0,0,0,0,0,0,
6]} 1. e4 {[%emt 0:00:02]} c5 {[%emt 0:00:08]} 2. Nf3 {[%emt 0:00:06]} d6 {
[%emt 0:00:09]} 3. d4 {[%emt 0:00:27]} cxd4 {[%emt 0:00:12]} 4. Nxd4 {[%emt 0:
00:00]} Nf6 {[%emt 0:00:12]} 5. Nc3 {[%emt 0:00:11]} a6 {[%emt 0:00:06]} 6. Be2
{[%emt 0:00:09]} e5 {[%emt 0:01:27]} 7. Nb3 {[%emt 0:00:09]} Be7 {[%emt 0:00:
00]} 8. O-O {[%emt 0:00:29]} O-O {[%emt 0:01:34]} 9. Qd3 {[%emt 0:00:35]} b5 {
[%emt 0:09:30][%cal Yb7b5,Yb5b4] B92: Sicilian Najdorf: 6 Be2.} 10. Bg5 {
[%emt 0:21:42]} Nbd7 {[%emt 0:04:20]} 11. a4 {[%emt 0:03:01]} b4 {[%emt 0:00:
00]} 12. Nd5 {[%emt 0:01:14] [#]} a5 $146 {[%emt 0:04:20]} ({Predecessor:} 
12... Nxd5 13. Qxd5 Rb8 14. Bxe7 Qxe7 15. Rfd1 Rb6 16. a5 Nf6 17. Qd3 Rc6 18.
Nd2 Be6 {0-1 (58) Kaliadzich,M (1801)-Gerasimovitch,O (2128) Minsk 2010}) 13.
Nxe7+ {[%emt 0:21:26]} Qxe7 {[%emt 0:04:05]} 14. Qg3 {[%emt 0:00:08]} Qe6 {
[%emt 0:04:25]} 15. Bh6 {[%emt 0:07:36][%csl Gh6][%cal Rg3g7] [#]} Ne8 {
[%emt 0:03:07]} 16. Bg5 {[%emt 0:07:31]} Nef6 {[%emt 0:00:23] Inhibits Bg4.}
17. Nd2 {[%emt 0:12:01]} Ba6 {[%emt 0:08:54] Inhibits Bc4.} 18. Bxa6 $40 {
[%emt 0:02:06] White is up to no good.} Rxa6 {[%emt 0:00:09][%cal Ya8a6,Ya6d6,
Yd6d5]} 19. Bxf6 {[%emt 0:00:42]} Nxf6 {[%emt 0:01:00]} 20. Qd3 {[%emt 0:03:13]
} d5 {[%emt 0:09:09]} 21. Rae1 {[%emt 0:00:16]} Rd6 {[%emt 0:13:13]} 22. exd5 {
[%emt 0:01:48]} Rxd5 {[%emt 0:02:48]} 23. Qe2 {[%emt 0:01:06]} Qc6 {[%emt 0:09:
41]} 24. Nc4 {[%emt 0:01:46]} e4 {[%emt 0:00:00]} 25. b3 {[%emt 0:00:44]} Qc7 {
[%emt 0:03:15]} (25... Rc5 $11) 26. Rd1 $16 {[%emt 0:01:49]} Re8 {[%emt 0:01:
22]} 27. Rxd5 {[%emt 0:03:20]} (27. h3 $16) 27... Nxd5 $11 {[%emt 0:00:11]} 28.
Qh5 {[%emt 0:00:09]} Qd8 {[%emt 0:04:56]} 29. g3 {[%emt 0:01:42] [#] Black
must now prevent Rd1.} ({Don't go for} 29. Rd1 $2 Nf4 30. Qg4 (30. Rxd8 $2 Rxd8
31. Qg4 f5 $19) 30... f5 31. Rxd8 Rxd8 $19) 29... g6 {[%emt 0:00:37]} 30. Qd1 {
[%emt 0:02:44]} Qa8 {[%emt 0:00:03]} 31. Re1 {[%emt 0:00:43]} Nc3 {[%emt 0:00:
29]} (31... Rd8 $11) 32. Qd2 {[%emt 0:01:14]} ({Better is} 32. Qd7 $1 $14)
32... Rd8 {[%emt 0:01:00] The position is equal.} 33. Qg5 {[%emt 0:01:27]} Qd5
{[%emt 0:01:06]} 34. Qf6 {[%emt 0:01:55]} Re8 {[%emt 0:02:30]} 35. Nd6 {
[%emt 0:00:32]} Rf8 {[%emt 0:00:29]} 36. Nc4 {[%emt 0:00:00]} Re8 {[%emt 0:00:
25]} 37. Nd6 {[%emt 0:00:50]} Rf8 {[%emt 0:00:05]} 38. Nc4 {[%emt 0:02:37]
Prevents Qd2.} Re8 {[%emt 0:01:42] Weighted Error Value: White=0.09 (flawless)
/Black=0.11 (very precise)} 1/2-1/2

[Event "44th Chess Olympiad Open 2022"]
[Site "Chennai"]
[Date "2022.08.01"]
[Round "4.13"]
[White "Gundavaa, Bayarsaikhan"]
[Black "Tari, Aryan"]
[Result "1/2-1/2"]
[WhiteElo "2503"]
[BlackElo "2672"]
[Annotator "TA"]
[PlyCount "83"]
[EventDate "2022.??.??"]
[TimeControl "60"]

{[%evp 13,83,31,37,35,61,47,69,62,63,45,60,66,79,77,77,75,72,60,74,52,60,73,58,
0,59,0,12,0,0,0,0,0,0,-3,-2,-3,0,0,0,-13,0,0,0,-3,-1,-3,0,0,0,0,0,0,0,0,0,8,8,
7,8,8,11,0,29966,29972,29952,29939,5069,769,984,0,1612,0]} 1. d4 {[%emt 0:00:
00]} Nf6 {[%emt 0:00:09]} 2. c4 {[%emt 0:00:06]} e6 {[%emt 0:00:05]} 3. g3 {
[%emt 0:00:46]} d5 {[%emt 0:00:08]} 4. Nf3 {[%emt 0:00:27]} dxc4 {[%emt 0:00:
00]} 5. Bg2 {[%emt 0:00:59]} Nbd7 {[%emt 0:00:39]} 6. O-O {[%emt 0:04:06]} c6 {
[%emt 0:00:14] Nowadays more popular than 6...c5.} 7. a4 {[%emt 0:09:20]} a5 {
[%emt 0:00:24]} 8. Qc2 {[%emt 0:11:40] E04: Open Catalan: 5 Nf3.} b5 {[%emt 0:
00:00]} 9. axb5 {[%emt 0:10:18]} cxb5 {[%emt 0:00:41]} 10. Ne5 {[%emt 0:00:04]
White is slightly better.} Nd5 {[%emt 0:03:54]} 11. Nc3 $1 {[%emt 0:01:09]
White is more active.} Nxe5 {[%emt 0:01:12]} 12. dxe5 {[%emt 0:00:22]} Qb6 {
[%emt 0:00:42]} 13. Nxd5 {[%emt 0:10:28]} exd5 {[%emt 0:00:11]} 14. Bxd5 {
[%emt 0:00:02]} Ra7 {[%emt 0:01:15]} 15. Qe4 {[%emt 0:05:29] Black must now
prevent Rd1.} (15. Bxc4 $5 bxc4 16. Be3 $16) 15... Bc5 {[%emt 0:03:33] [#]} 16.
Bc6+ $1 {[%emt 0:03:56]} Bd7 {[%emt 0:01:49]} 17. Bxd7+ {[%emt 0:02:24]} Rxd7 {
[%emt 0:00:27] [#]} 18. Qg4 $146 {[%emt 0:02:53]} (18. Qa8+ $14 Rd8 19. Qxa5) (
{Predecessor:} 18. Qa8+ Rd8 19. Qxa5 Qc6 20. Qa6 Qxa6 21. Rxa6 Kd7 22. Be3 Bxe3
23. fxe3 Rhf8 24. Rb6 {½-½ (50) Nguyen,T (2612)-Nihal,S (2646) Jermuk 2022})
18... Rg8 {[%emt 0:29:54]} (18... Rf8 $11) 19. Bg5 {[%emt 0:08:07]} (19. Qh5
$14) 19... h6 $11 {[%emt 0:08:11]} 20. Rfd1 {[%emt 0:13:12]} Bxf2+ {[%emt 0:00:
00]} (20... Rxd1+ $2 21. Rxd1 Bxf2+ 22. Kf1 hxg5 23. Qd7+ Kf8 24. Qc8+ Ke7 25.
Qxg8 $18) 21. Kf1 {[%emt 0:00:17]} Qe6 {[%emt 0:01:00]} 22. Qf3 {[%emt 0:08:46]
Threatening mate with Qa8+.} hxg5 {[%emt 0:01:52]} 23. Rxd7 {[%emt 0:01:53]
Really sharp!} Qxd7 {[%emt 0:01:34]} 24. Kxf2 {[%emt 0:01:14] Endgame KQR-KQR}
Qa7+ {[%emt 0:11:11]} 25. Kf1 {[%emt 0:00:09] Qc6+ is the strong threat.} Ke7 {
[%emt 0:03:42]} 26. Qf5 {[%emt 0:00:43]} Qe3 {[%emt 0:00:00]} 27. Ra3 {[%emt 0:
01:49]} Qc1+ {[%emt 0:00:18]} 28. Kf2 {[%emt 0:01:19]} Rh8 {[%emt 0:02:10]} 29.
h3 {[%emt 0:00:18]} Qxb2 {[%emt 0:05:15]} 30. Qxg5+ {[%emt 0:01:09]} Ke8 {
[%emt 0:00:09]} 31. Rf3 {[%emt 0:01:31] aiming for Qf4.} Qd4+ {[%emt 0:02:23]}
(31... Rxh3 $2 32. Qxg7 Qd4+ 33. Kg2 $18) 32. Kg2 {[%emt 0:00:09]} Qd5 {
[%emt 0:02:37] And now ...Kf8 would win.} 33. Qxg7 {[%emt 0:00:08]} Rh5 {
[%emt 0:00:14]} 34. e4 {[%emt 0:00:33]} Qe6 $132 {[%emt 0:00:00] Hoping for ...
Qg6. Black has counterplay} (34... Qd2+ $2 35. Rf2 Qxf2+ 36. Kxf2 $18) 35. g4 {
[%emt 0:01:08]} Rxe5 {[%emt 0:02:39]} 36. Rf6 {[%emt 0:00:04]} ({Don't take} 
36. Rxf7 Qxf7 37. Qxe5+ Kf8 $14) 36... Qe7 {[%emt 0:00:20]} 37. Ra6 {[%emt 0:
00:59] White has compensation.} Qc7 $2 {[%emt 0:01:41] [#]} (37... Rxe4 $2 38.
Qg8+ Kd7 39. Ra7+ Kd6 40. Qb8+ Kc6 41. Qc8+ Kd5 42. Qa8+ Kd6 43. Rxe7 Rxe7 44.
Qd8+ Rd7 45. Qb6+ Ke7 46. Qxb5 $18) (37... Rc5 $11 38. Qh8+ Kd7 39. Qd4+ Kc8
40. Qh8+ Kd7 41. Qd4+ Kc8 42. Qh8+ Kd7) 38. Ra8+ {[%emt 0:00:13]} Ke7 {[%emt 0:
00:19]} 39. Qf8+ {[%emt 0:00:00]} Kf6 {[%emt 0:00:28]} 40. Qh6+ {[%emt 0:00:15]
} (40. Ra6+ $142 Re6 41. g5+ Ke5 42. Qg7+ Kf4 43. Rxe6) 40... Ke7 $18 {[%emt 0:
00:08]} 41. Qf8+ {[%emt 0:03:00]} (41. g5 $142 Kd7 42. Qf6) 41... Kf6 $1 {
[%emt 0:01:21]} 42. Qh6+ $2 {[%emt 0:21:35] Weighted Error Value: White=0.18 
(very precise) / Black=0.21 (precise)} (42. Ra6+ $18 Re6 43. g5+ Ke5 44. Qg7+
Kxe4 45. Rxe6+ Kd3 46. g6) 1/2-1/2

[Event "44th Chess Olympiad Open 2022"]
[Site "Chennai"]
[Date "2022.08.01"]
[Round "4.13"]
[White "Gan-Erdene, Sugar"]
[Black "Urkedal, Frode Olav Olsen"]
[Result "1-0"]
[WhiteElo "2428"]
[BlackElo "2555"]
[Annotator "TA"]
[PlyCount "117"]
[EventDate "2022.??.??"]
[TimeControl "60"]

{[%evp 17,117,0,0,0,0,0,38,42,50,50,47,49,61,16,29,18,90,84,83,79,77,75,140,
100,119,125,116,112,114,119,113,88,108,91,81,77,139,129,197,197,195,185,236,
186,187,180,254,249,276,272,276,278,278,144,144,147,147,145,144,152,154,147,
152,137,218,218,204,175,182,147,166,166,963,937,937,937,700,537,1716,1206,
12829,12830,12833,12430,12835,12835,12835,12836,12836,12833,12837,12837,12837,
12838,12837,12837,12841,12841,12842,12843,12842,12842]} 1. d4 {[%emt 0:00:04]}
Nf6 {[%emt 0:00:09]} 2. c4 {[%emt 0:00:04]} e6 {[%emt 0:00:06]} 3. g3 {[%emt 0:
00:00]} d5 {[%emt 0:00:10]} 4. Nf3 {[%emt 0:00:28]} Bb4+ {[%emt 0:00:18]} 5.
Bd2 {[%emt 0:00:28]} Be7 {[%emt 0:00:05]} 6. Bg2 {[%emt 0:00:34]} c6 {[%emt 0:
00:00]} 7. Qc2 {[%emt 0:01:41]} Nbd7 {[%emt 0:00:09]} 8. O-O {[%emt 0:00:38]}
O-O {[%emt 0:00:53]} 9. Bf4 {[%emt 0:01:18]} a5 {[%emt 0:01:38]} 10. Nbd2 {
[%emt 0:08:21][%cal Yb1d2,Yd2b3,Yb3c1,Yc1d3,Yd3c5] E08: Closed Catalan: Main
Line: 7 Qc2.} Nh5 {[%emt 0:00:54]} 11. Be3 {[%emt 0:08:04]} f5 {[%emt 0:07:09]}
12. Nb3 {[%emt 0:01:43] White is slightly better.} Bd6 {[%emt 0:05:37]} 13. Nc1
{[%emt 0:04:45] [#]} b5 $146 {[%emt 0:15:57]} ({Predecessor:} 13... Qe7 14. Nd3
Nhf6 15. Bf4 Ne4 16. Bxd6 Nxd6 17. Nfe5 Ne4 18. Nxd7 Bxd7 19. Ne5 Nd6 {½-½ 
(55) Izzat,K (2326)-Mchedlishvili,M (2652) Baku 2012}) 14. cxb5 {[%emt 0:16:58]
} cxb5 {[%emt 0:00:49]} 15. Qc6 {[%emt 0:00:39][%csl Ya8,Yb5,Yd6]} Nb6 {
[%emt 0:07:38]} 16. Nd3 {[%emt 0:03:52]} Qd7 {[%emt 0:11:50]} 17. Qxd7 {
[%emt 0:19:17]} Bxd7 {[%emt 0:00:11]} 18. Nfe5 {[%emt 0:00:20]} Rfd8 {[%emt 0:
11:46]} 19. b3 {[%emt 0:03:23]} Ba3 {[%emt 0:00:00] Prevents Rfc1.} (19... Nf6
$142) 20. Bc1 {[%emt 0:07:31]} Bd6 {[%emt 0:00:00]} 21. Nc5 {[%emt 0:01:18]}
Bc8 {[%emt 0:00:07]} 22. Bd2 {[%emt 0:02:39][%cal Yd2a5]} Re8 {[%emt 0:04:04]}
23. Rfc1 {[%emt 0:03:28]} Nf6 {[%emt 0:00:00]} 24. Nc6 {[%emt 0:03:04]} a4 {
[%emt 0:00:00]} 25. Bf4 {[%emt 0:03:01]} Bf8 {[%emt 0:00:00]} 26. e3 {[%emt 0:
03:03]} Nfd7 {[%emt 0:01:01]} (26... Nbd7 $142) 27. Bc7 $36 {[%emt 0:02:00]
White has strong initiative. White is much more active. The black rooks are
badly placed.} b4 {[%emt 0:07:21]} (27... Nxc5 $16 {might work better.} 28.
dxc5 Nd7) 28. Bxb6 $18 {[%emt 0:02:43]} ({Resist} 28. Nxb4 Nxc5 29. dxc5 axb3
$16) 28... Nxb6 {[%emt 0:00:06]} 29. Nxb4 {[%emt 0:00:08] Pair of Knights!} Bd7
{[%emt 0:03:37]} (29... axb3 $142 30. axb3 Rxa1 31. Rxa1 Re7) 30. Bf1 {[%emt 0:
00:54]} axb3 {[%emt 0:02:35]} 31. axb3 {[%emt 0:00:05]} Reb8 {[%emt 0:00:43]} (
31... Bd6 {was worth a try.} 32. Nba6 Bc8) 32. Nbd3 {[%emt 0:00:30]} Bc8 {
[%emt 0:00:38]} 33. Rxa8 {[%emt 0:02:10]} Rxa8 {[%emt 0:00:05]} 34. Nf4 {
[%emt 0:00:12]} Kf7 {[%emt 0:01:16] [#]} 35. Nfxe6 {[%emt 0:00:31]} Bxe6 $16 {
[%emt 0:00:08]} 36. Nxe6 {[%emt 0:00:03]} Kxe6 {[%emt 0:00:05]} 37. Rc6+ {
[%emt 0:00:04]} Bd6 {[%emt 0:00:04]} 38. Rxb6 {[%emt 0:00:05]} Rb8 {[%emt 0:00:
03] Inhibits Rb7.} 39. Rxb8 {[%emt 0:00:51]} Bxb8 {[%emt 0:00:05] Endgame [#]
KB-KB} 40. b4 $1 {[%emt 0:00:11][%cal Yb3b4,Yb4b5]} Bd6 {[%emt 0:00:44]} (40...
g5 $16 41. b5 Bc7) 41. b5 $18 {[%emt 0:30:07]} Bc7 {[%emt 0:30:06] [#]} 42. h4
$1 {[%emt 0:01:16]} g6 {[%emt 0:00:00]} 43. Bd3 {[%emt 0:00:00]} h6 {[%emt 0:
00:00]} 44. g4 {[%emt 0:00:00]} h5 $2 {[%emt 0:00:00]} (44... fxg4 45. Bxg6 g3)
45. gxf5+ {[%emt 0:00:00] White is clearly winning.} gxf5 {[%emt 0:00:00]} 46.
Kg2 {[%emt 0:00:00] Be2 is the strong threat.} Bd8 {[%emt 0:00:00]} 47. Kh3 {
[%emt 0:00:00] Threatens to win with Be2.} Ba5 {[%emt 0:00:00]} 48. Be2 {
[%emt 0:00:00]} f4 {[%emt 0:00:00]} 49. exf4 {[%emt 0:00:00]} Bb6 {[%emt 0:00:
00]} 50. Bxh5 {[%emt 0:00:00]} Bxd4 {[%emt 0:00:00]} 51. Kg3 {[%emt 0:00:00]}
Bb6 {[%emt 0:00:00]} 52. Be2 {[%emt 0:00:00]} Kf6 {[%emt 0:00:00]} 53. Bd3 {
[%emt 0:00:00]} Bc7 {[%emt 0:00:00]} 54. Kg4 {[%emt 0:00:00]} Bb6 {[%emt 0:00:
00]} 55. f3 {[%emt 0:00:00]} d4 {[%emt 0:00:00]} 56. h5 {[%emt 0:00:00][%cal
Yh4h5,Yh5h6]} Bd8 {[%emt 0:00:00]} 57. h6 {[%emt 0:00:00]} Bc7 {[%emt 0:00:00]}
58. f5 {[%emt 0:00:00] Intending h7 and mate.} Bd8 {[%emt 0:00:00]} 59. Kf4 {
[%emt 0:00:00] Weighted Error Value: White=0.15 (very precise) /Black=0.23 
(precise)} 1-0

[Event "44th Chess Olympiad Open 2022"]
[Site "Chennai"]
[Date "2022.08.01"]
[Round "4.14"]
[White "Keymer, Vincent"]
[Black "Baburin, Alexander"]
[Result "1-0"]
[WhiteElo "2686"]
[BlackElo "2400"]
[Annotator "TA"]
[PlyCount "74"]
[EventDate "2022.??.??"]
[TimeControl "60"]

{[%evp 11,74,18,25,24,25,18,17,18,30,21,30,32,22,-4,47,48,55,49,50,35,72,68,80,
84,59,68,140,133,123,131,141,133,133,134,145,141,145,128,195,197,193,185,188,
195,183,172,194,188,204,214,200,208,205,174,175,151,151,149,313,313,313,313,
313,313,450]} 1. d4 {[%emt 0:00:05]} d5 {[%emt 0:00:10]} 2. c4 {[%emt 0:00:04]}
dxc4 {[%emt 0:00:05]} 3. Nf3 {[%emt 0:00:56]} Nf6 {[%emt 0:00:33]} 4. e3 {
[%emt 0:00:05]} e6 {[%emt 0:00:10]} 5. Bxc4 {[%emt 0:00:11]} c5 {[%emt 0:00:04]
} 6. O-O {[%emt 0:00:34]} a6 {[%emt 0:08:01]} 7. Be2 {[%emt 0:07:56] D27:
Queen's Gambit Accepted: Classical main line: 7 e4!? and 7 a4.} Nbd7 {[%emt 0:
00:00]} 8. Nbd2 $5 {[%emt 0:03:33][%cal Yb1d2,Yd2c4,Yc4b6] [#] Leaves trodden
paths.} Be7 $146 {[%emt 0:05:03]} ({Predecessor:} 8... b6 9. b3 Bb7 10. Bb2 Be7
11. Nc4 O-O 12. Rc1 Rc8 13. dxc5 Rxc5 14. Bd4 Rc8 {0-1 (57) Andreikin, D (2729)
-Aronian,L (2785) Chess.com INT 2022}) 9. dxc5 {[%emt 0:03:17] The position is
equal.} Nxc5 {[%emt 0:02:29]} 10. Nc4 {[%emt 0:03:24]} O-O {[%emt 0:10:22]} 11.
Qxd8 {[%emt 0:06:50]} Rxd8 {[%emt 0:09:28]} 12. Bd2 {[%emt 0:13:55]} Bd7 {
[%emt 0:08:44]} (12... b5 $11 13. Nb6 Rb8) 13. Ba5 $14 {[%emt 0:01:47]} Re8 {
[%emt 0:04:42]} 14. Nb6 {[%emt 0:01:05]} Rab8 {[%emt 0:00:00]} 15. Rfd1 {
[%emt 0:12:22] And now b4 would win.} Bc6 {[%emt 0:26:10]} 16. Rac1 {[%emt 0:
03:05]} Bd5 {[%emt 0:05:43]} 17. b4 $1 {[%emt 0:06:02]} Nce4 {[%emt 0:01:18]}
18. Ne5 {[%emt 0:01:57][%cal Yf3e5,Ye5d7,Yd7c5] Prevents Ng4.} Bxa2 {[%emt 0:
03:39]} (18... Nd6 $1 $14) 19. f3 $1 $16 {[%emt 0:00:00]} Nd6 {[%emt 0:01:09]}
20. e4 $1 {[%emt 0:04:16]} Nc8 {[%emt 0:05:55]} 21. Nbd7 {[%emt 0:07:12] 0x0.
0019ebb278f4dp-1022s more active pieces. The black rooks are badly placed.}
Nxd7 {[%emt 0:00:11]} 22. Nxd7 {[%emt 0:00:05]} (22. Rxd7 $6 Bf6 23. Bc7 (23.
Nxf7 $2 b6 $19) 23... Nb6 24. Bxb6 (24. Bxb8 Rxb8 25. Rcd1 Nxd7 $15) 24... Bxe5
$11) 22... Ra8 {[%emt 0:00:08]} 23. Ra1 $1 {[%emt 0:00:45]} Bb3 {[%emt 0:01:22]
} 24. Rdb1 {[%emt 0:00:52]} Bd8 {[%emt 0:00:00]} 25. Bxd8 {[%emt 0:05:20]} Rxd8
{[%emt 0:00:04]} 26. Nc5 $36 {[%emt 0:00:00] White is really pushing.} Rd2 {
[%emt 0:00:14] [#]} 27. Kf1 {[%emt 0:00:57] White has strong compensation.} ({
But not} 27. Rxb3 $6 Rxe2 28. Nxb7 Nb6 $16) 27... Ba2 {[%emt 0:00:15] [#]} 28.
Rc1 {[%emt 0:00:00] Threatens to win with Ke1.} ({Much less strong is} 28. Rd1
Rxd1+ 29. Rxd1 Nb6 $16) 28... Nb6 {[%emt 0:01:31]} 29. Ke1 {[%emt 0:01:21]} Rb2
{[%emt 0:00:00]} 30. Nd3 {[%emt 0:01:51]} Rxe2+ {[%emt 0:00:11]} 31. Kxe2 {
[%emt 0:00:03]} Bc4 {[%emt 0:00:04]} 32. Ke3 {[%emt 0:00:55]} Bb5 {[%emt 0:00:
35]} 33. Nc5 {[%emt 0:04:29]} Nc4+ {[%emt 0:00:12]} 34. Kf2 {[%emt 0:01:44]} b6
$2 {[%emt 0:00:00] [#] Black cannot hold the game after this.} (34... Rb8 $16
35. Nb3 Rd8) 35. Nxa6 $1 $18 {[%emt 0:02:53] White has a decisive advantage.}
Rxa6 {[%emt 0:01:17]} 36. Rxa6 {[%emt 0:00:05]} Bxa6 {[%emt 0:00:03]} 37. Ra1 {
[%emt 0:00:05]} h6 {[%emt 0:01:45] Weighted Error Value: White=0.03 (flawless)
/Black=0.19 (very precise)} (37... Bb7 $142 38. Ra7 Bxe4) 1-0